fUSD/lending_fUSD_20240409
["ID","MTS","AMOUNT","RATE_DAILY","PERIOD"]
[321933807,1712641856448,-509.9,0.00021095,2]
[321933808,1712641856458,-500.0,0.00021095,2]
[321933809,1712641856467,-500.0,0.00021095,2]
[321933810,1712641856475,-500.0,0.00021095,2]
[321933811,1712641856487,-500.0,0.00021095,2]
[321933812,1712641856496,-500.0,0.00021095,2]
[321933813,1712641856505,-500.0,0.00021095,2]
[321933814,1712641856515,-500.0,0.00021095,2]
[321933815,1712641856527,-2075.79,0.00021095,2]
[321933816,1712641856537,-521.47167997,0.00021095,2]
[321933817,1712641856548,-538.04062704,0.00021095,2]
[321933818,1712641856560,-500.0,0.00021095,2]
[321933819,1712641856570,-961.78,0.00021095,2]
[321933820,1712641856580,-500.0,0.00021095,2]
[321933821,1712641856589,-500.0,0.00021095,2]
[321933822,1712641856600,-419.14048851,0.00021095,2]
[321933823,1712641856612,-2900.57,0.00021095,2]
[321933824,1712641856622,-1980.99,0.00021095,2]
[321933825,1712641856632,-686.23,0.00021095,2]
[321933826,1712641856642,-518.01557467,0.00021095,2]
[321933827,1712641856652,-1733.36,0.00021095,2]
[321933828,1712641856661,-1016.84,0.00021095,2]
[321933829,1712641856670,-765.72,0.00021095,2]
[321933830,1712641856680,-500.0,0.00021095,2]
[321933831,1712641856689,-663.75,0.00021095,2]
[321933832,1712641856698,-500.0,0.00021095,2]
[321933833,1712641856707,-1563.13,0.00021095,2]
[321933834,1712641856717,-1622.49,0.00021095,2]
[321933835,1712641856726,-1292.26,0.00021095,2]
[321933836,1712641856735,-749.86,0.00021095,2]
[321933837,1712641856744,-500.0,0.00021095,2]
[321933838,1712641856753,-500.0,0.00021095,2]
[321933839,1712641856762,-506.65430988,0.00021095,2]
[321933840,1712641856771,-500.0,0.00021095,2]
[321933841,1712641856781,-500.0,0.00021095,2]
[321933842,1712641856790,-500.0,0.00021095,2]
[321933843,1712641856799,-511.57500718,0.00021095,2]
[321933844,1712641856808,-1506.04,0.00021095,2]
[321933845,1712641856818,-500.0,0.00021095,2]
[321933846,1712641856828,-500.0,0.00021095,2]
[321933847,1712641856838,-500.0,0.00021095,2]
[321933848,1712641856849,-500.0,0.00021095,2]
[321933849,1712641856859,-500.0,0.00021095,2]
[321933850,1712641856868,-903.42,0.00021095,2]
[321933851,1712641856877,-2309.39,0.00021095,2]
[321933852,1712641856887,-1745.45,0.00021095,2]
[321933853,1712641856896,-179.82718522,0.00021095,2]
[321933854,1712641856905,-500.0,0.00021095,2]
[321933855,1712641856914,-1970.46,0.00021095,2]
[321933856,1712641856924,-500.0,0.00021095,2]
[321933857,1712641856933,-663.26,0.00021095,2]
[321933858,1712641856943,-739.35,0.00021095,2]
[321933859,1712641856953,-436.02136745,0.00021095,2]
[321933860,1712641856962,-500.0,0.00021095,2]
[321933861,1712641856971,-582.21,0.00021095,2]
[321933862,1712641856980,-621.68,0.00021095,2]
[321933863,1712641856989,-500.0,0.00021095,2]
[321933864,1712641856999,-597.97003008,0.00021095,2]
[321933865,1712641857007,-500.0,0.00021095,2]
[321933866,1712641857016,-1196.48,0.00021095,2]
[321933867,1712641857025,-1075.04,0.00021095,2]
[321933868,1712641857035,-1051.72,0.00021095,2]
[321933869,1712641857044,-1769.75,0.00021095,2]
[321933870,1712641857053,-500.0,0.00021095,2]
[321933871,1712641857063,-500.0,0.00021095,2]
[321933872,1712641857074,-500.0,0.00021095,2]
[321933873,1712641857084,-1518.37,0.00021095,2]
[321933874,1712641857093,-500.0,0.00021095,2]
[321933875,1712641857102,-500.0,0.00021095,2]
[321933876,1712641857111,-891.83,0.00021095,2]
[321933877,1712641857121,-500.0,0.00021095,2]
[321933878,1712641857131,-510.48105502,0.00021095,2]
[321933879,1712641857141,-1278.22,0.00021095,2]
[321933880,1712641857151,-500.0,0.00021095,2]
[321933881,1712641857161,-500.0,0.00021095,2]
[321933882,1712641857171,-999.33,0.00021095,2]
[321933883,1712641857181,-1994.41,0.00021095,2]
[321933884,1712641857190,-752.8,0.00021095,2]
[321933885,1712641857200,-619.09,0.00021095,2]
[321933886,1712641857209,-500.0,0.00021095,2]
[321933887,1712641857219,-511.48352233,0.00021095,2]
[321933888,1712641857229,-500.0,0.00021095,2]
[321933889,1712641857239,-1460.15,0.00021095,2]
[321933890,1712641857249,-1945.75,0.00021095,2]
[321933891,1712641857258,-500.0,0.00021095,2]
[321933892,1712641857268,-500.0,0.00021095,2]
[321933893,1712641857278,-500.0,0.00021095,2]
[321933894,1712641857287,-733.87,0.00021095,2]
[321933895,1712641857297,-500.0,0.00021095,2]
[321933896,1712641857306,-500.0,0.00021095,2]
[321933897,1712641857316,-500.0,0.00021095,2]
[321933898,1712641857325,-2678.48,0.00021095,2]
[321933899,1712641857335,-500.0,0.00021095,2]
[321933900,1712641857345,-1252.14,0.00021095,2]
[321933901,1712641857355,-950.49,0.00021095,2]
[321933902,1712641857366,-500.0,0.00021095,2]
[321933903,1712641857375,-500.0,0.00021095,2]
[321933904,1712641857385,-629.3,0.00021095,2]
[321933905,1712641857395,-1679.59,0.00021095,2]
[321933906,1712641857404,-500.0,0.00021095,2]
[321933907,1712641857415,-500.0,0.00021095,2]
[321933908,1712641857426,-500.0,0.00021095,2]
[321933909,1712641857436,-500.0,0.00021095,2]
[321933910,1712641857447,-524.2010483,0.00021095,2]
[321933911,1712641857458,-500.0,0.00021095,2]
[321933912,1712641857468,-1969.93,0.00021095,2]
[321933913,1712641857479,-1001.93,0.00021095,2]
[321933914,1712641857491,-500.0,0.00021095,2]
[321933915,1712641857501,-500.0,0.00021095,2]
[321933916,1712641857511,-500.0,0.00021095,2]
[321933917,1712641857522,-500.0,0.00021095,2]
[321933918,1712641857532,-1538.37,0.00021095,2]
[321933919,1712641857542,-500.0,0.00021095,2]
[321933920,1712641857552,-2005.38,0.00021095,2]
[321933921,1712641857563,-500.0,0.00021095,2]
[321933922,1712641857574,-500.0,0.00021095,2]
[321933923,1712641857584,-606.37545266,0.00021095,2]
[321933924,1712641857594,-500.0,0.00021095,2]
[321933925,1712641857605,-380.73868676,0.00021095,2]
[321933926,1712641857616,-500.0,0.00021095,2]
[321933927,1712641857626,-500.0,0.00021095,2]
[321933928,1712641857636,-516.33690655,0.00021095,2]
[321933929,1712641857647,-2153.04,0.00021095,2]
[321933930,1712641857657,-500.0,0.00021095,2]
[321933931,1712641857667,-523.14113972,0.00021095,2]
[321933932,1712641857678,-993.4,0.00021095,2]
[321933933,1712641857687,-1611.24,0.00021095,2]
[321933934,1712641857699,-500.0,0.00021095,2]
[321933935,1712641857710,-2439.02,0.00021095,2]
[321933936,1712641857721,-500.0,0.00021095,2]
[321933937,1712641857730,-500.0,0.00021095,2]
[321933938,1712641857740,-500.0,0.00021095,2]
[321933939,1712641857751,-500.0,0.00021095,2]
[321933940,1712641857762,-500.0,0.00021095,2]
[321933941,1712641857773,-500.0,0.00021095,2]
[321933942,1712641857783,-2160.77,0.00021095,2]
[321933943,1712641857794,-1489.67,0.00021095,2]
[321933944,1712641857805,-2876.12,0.00021095,2]
[321933945,1712641857816,-500.0,0.00021095,2]
[321933946,1712641857828,-806.19,0.00021095,2]
[321933947,1712641857839,-500.0,0.00021095,2]
[321933948,1712641857849,-500.0,0.00021095,2]
[321933949,1712641857859,-500.0,0.00021095,2]
[321933950,1712641857870,-500.0,0.00021095,2]
[321933951,1712641857881,-500.0,0.00021095,2]
[321933952,1712641857890,-175.40735261,0.00021095,2]
[321933953,1712641857900,-500.0,0.00021095,2]
[321933954,1712641857910,-388.28532631,0.00021095,2]
[321933955,1712641857921,-513.98406261,0.00021095,2]
[321933956,1712641857931,-1500.79,0.00021095,2]
[321933957,1712641857941,-608.58,0.00021095,2]
[321933958,1712641857950,-602.13,0.00021095,2]
[321933959,1712641857960,-500.0,0.00021095,2]
[321933960,1712641857970,-965.99,0.00021095,2]
[321933961,1712641857979,-500.0,0.00021095,2]
[321933962,1712641857991,-500.0,0.00021095,2]
[321933963,1712641858002,-500.0,0.00021095,2]
[321933964,1712641858012,-500.0,0.00021095,2]
[321933965,1712641858022,-500.0,0.00021095,2]
[321933966,1712641858032,-607.03,0.00021095,2]
[321933967,1712641858042,-500.0,0.00021095,2]
[321933968,1712641858052,-799.64,0.00021095,2]
[321933969,1712641858063,-1144.11,0.00021095,2]
[321933970,1712641858073,-500.0,0.00021095,2]
[321933971,1712641858083,-500.0,0.00021095,2]
[321933972,1712641858093,-777.49,0.00021095,2]
[321933973,1712641858104,-500.0,0.00021095,2]
[321933974,1712641858121,-500.0,0.00021095,2]
[321933975,1712641858141,-556.78,0.00021095,2]
[321933976,1712641858152,-500.0,0.00021095,2]
[321933977,1712641858161,-585.54,0.00021095,2]
[321933978,1712641858171,-500.0,0.00021095,2]
[321933979,1712641858181,-500.0,0.00021095,2]
[321933980,1712641858193,-625.41,0.00021095,2]
[321933981,1712641858203,-1942.73,0.00021095,2]
[321933982,1712641858213,-500.0,0.00021095,2]
[321933983,1712641858224,-579.49,0.00021095,2]
[321933984,1712641858233,-500.0,0.00021095,2]
[321933985,1712641858243,-1750.23,0.00021095,2]
[321933986,1712641858253,-519.96006638,0.00021095,2]
[321933987,1712641858262,-500.0,0.00021095,2]
[321933988,1712641858272,-500.0,0.00021095,2]
[321933989,1712641858281,-500.0,0.00021095,2]
[321933990,1712641858290,-522.41,0.00021095,2]
[321933991,1712641858299,-500.0,0.00021095,2]
[321933992,1712641858308,-500.0,0.00021095,2]
[321933993,1712641858317,-1571.96,0.00021095,2]
[321933994,1712641858326,-500.0,0.00021095,2]
[321933995,1712641858335,-1507.74,0.00021095,2]
[321933996,1712641858345,-692.95,0.00021095,2]
[321933997,1712641858355,-500.0,0.00021095,2]
[321933998,1712641858364,-510.99,0.00021095,2]
[321933999,1712641858373,-500.0,0.00021095,2]
[321934000,1712641858382,-500.0,0.00021095,2]
[321934001,1712641858391,-500.0,0.00021095,2]
[321934002,1712641858401,-1593.09,0.00021095,2]
[321934003,1712641858410,-511.95327801,0.00021095,2]
[321934004,1712641858419,-500.0,0.00021095,2]
[321934005,1712641858428,-1477.53,0.00021095,2]
[321934006,1712641858437,-212.73423408,0.00021095,2]
[321934007,1712641858446,-589.39,0.00021095,2]
[321934008,1712641858455,-500.0,0.00021095,2]
[321934009,1712641858464,-4513.14,0.00021095,2]
[321934010,1712641858473,-1505.38,0.00021095,2]
[321934011,1712641858486,-500.0,0.00021095,2]
[321934012,1712641858495,-500.0,0.00021095,2]
[321934013,1712641858504,-530.47406427,0.00021095,2]
[321934014,1712641858513,-2666.97,0.00021095,2]
[321934015,1712641858522,-600.0,0.00021095,2]
[321934016,1712641858532,-1399.47,0.00021095,2]
[321934017,1712641858541,-500.0,0.00021095,2]
[321934018,1712641858552,-1655.11,0.00021095,2]
[321934019,1712641858564,-500.0,0.00021095,2]
[321934020,1712641858574,-500.0,0.00021095,2]
[321934021,1712641858583,-1323.72,0.00021095,2]
[321934022,1712641858592,-500.0,0.00021095,2]
[321934023,1712641858603,-2482.56,0.00021095,2]
[321934024,1712641858612,-500.0,0.00021095,2]
[321934025,1712641858623,-749.14,0.00021095,2]
[321934026,1712641858634,-546.27,0.00021095,2]
[321934027,1712641858645,-1181.96,0.00021095,2]
[321934028,1712641858655,-500.0,0.00021095,2]
[321934029,1712641858665,-500.0,0.00021095,2]
[321934030,1712641858675,-500.0,0.00021095,2]
[321934031,1712641858684,-1344.74,0.00021095,2]
[321934032,1712641858696,-365.18168658,0.00021095,2]
[321934033,1712641858706,-1222.46,0.00021095,2]
[321934034,1712641858716,-500.0,0.00021095,2]
[321934035,1712641858725,-500.0,0.00021095,2]
[321934036,1712641858734,-797.53,0.00021095,2]
[321934037,1712641858744,-644.52,0.00021095,2]
[321934038,1712641858753,-624.11,0.00021095,2]
[321934039,1712641858763,-934.33,0.00021095,2]
[321934040,1712641858773,-1319.56,0.00021095,2]
[321934041,1712641858782,-717.67,0.00021095,2]
[321934042,1712641858793,-1551.11,0.00021095,2]
[321934043,1712641858802,-500.0,0.00021095,2]
[321934044,1712641858811,-500.0,0.00021095,2]
[321934045,1712641858820,-500.0,0.00021095,2]
[321934046,1712641858829,-500.0,0.00021095,2]
[321934047,1712641858839,-704.32,0.00021095,2]
[321934048,1712641858849,-2887.64,0.00021095,2]
[321934049,1712641858859,-1907.75,0.00021095,2]
[321934050,1712641858867,-886.47,0.00021095,2]
[321934051,1712641858876,-2219.14,0.00021095,2]
[321934052,1712641858885,-1029.36,0.00021095,2]
[321934053,1712641858894,-500.0,0.00021095,2]
[321934054,1712641858903,-500.0,0.00021095,2]
[321934055,1712641858911,-500.0,0.00021095,2]
[321934056,1712641858921,-500.0,0.00021095,2]
[321934057,1712641858930,-1197.59,0.00021095,2]
[321934058,1712641858939,-1224.62,0.00021095,2]
[321934059,1712641858948,-500.0,0.00021095,2]
[321934060,1712641858957,-509.47,0.00021095,2]
[321934061,1712641858965,-500.0,0.00021095,2]
[321934062,1712641858974,-500.0,0.00021095,2]
[321934063,1712641858983,-500.0,0.00021095,2]
[321934064,1712641858992,-1472.07,0.00021095,2]
[321934065,1712641859002,-500.0,0.00021095,2]
[321934066,1712641859011,-500.0,0.00021095,2]
[321934067,1712641859020,-500.0,0.00021095,2]
[321934068,1712641859029,-662.11,0.00021095,2]
[321934069,1712641859038,-560.19353163,0.00021095,2]
[321934070,1712641859048,-653.97,0.00021095,2]
[321934071,1712641859057,-500.0,0.00021095,2]
[321934072,1712641859067,-500.0,0.00021095,2]
[321934073,1712641859076,-500.0,0.00021095,2]
[321934074,1712641859084,-500.0,0.00021095,2]
[321934075,1712641859094,-500.0,0.00021095,2]
[321934076,1712641859103,-500.0,0.00021095,2]
[321934077,1712641859112,-779.01,0.00021095,2]
[321934078,1712641859121,-1551.58,0.00021095,2]
[321934079,1712641859130,-500.0,0.00021095,2]
[321934080,1712641859140,-630.37,0.00021095,2]
[321934081,1712641859149,-500.0,0.00021095,2]
[321934082,1712641859158,-500.0,0.00021095,2]
[321934083,1712641859167,-619.36,0.00021095,2]
[321934084,1712641859176,-1512.84,0.00021095,2]
[321934085,1712641859185,-546.43,0.00021095,2]
[321934086,1712641859194,-584.32,0.00021095,2]
[321934087,1712641859203,-2600.24,0.00021095,2]
[321934088,1712641859212,-500.0,0.00021095,2]
[321934089,1712641859222,-593.08,0.00021095,2]
[321934090,1712641859231,-1849.29,0.00021095,2]
[321934091,1712641859240,-500.0,0.00021095,2]
[321934092,1712641859249,-500.0,0.00021095,2]
[321934093,1712641859258,-500.0,0.00021095,2]
[321934094,1712641859267,-500.0,0.00021095,2]
[321934095,1712641859276,-1054.12,0.00021095,2]
[321934096,1712641859285,-1268.43,0.00021095,2]
[321934097,1712641859294,-819.58,0.00021095,2]
[321934098,1712641859303,-500.0,0.00021095,2]
[321934099,1712641859312,-1465.86,0.00021095,2]
[321934100,1712641859321,-500.0,0.00021095,2]
[321934101,1712641859330,-500.0,0.00021095,2]
[321934102,1712641859339,-2631.39,0.00021095,2]
[321934103,1712641859349,-2655.09,0.00021095,2]
[321934104,1712641859358,-500.0,0.00021095,2]
[321934105,1712641859367,-500.0,0.00021095,2]
[321934106,1712641859377,-500.0,0.00021095,2]
[321934107,1712641859386,-500.0,0.00021095,2]
[321934108,1712641859395,-1092.0,0.00021095,2]
[321934109,1712641859405,-729.14,0.00021095,2]
[321934110,1712641859413,-610.33,0.00021095,2]
[321934111,1712641859422,-500.0,0.00021095,2]
[321934112,1712641859432,-500.0,0.00021095,2]
[321934113,1712641859441,-500.0,0.00021095,2]
[321934114,1712641859450,-1777.54,0.00021095,2]
[321934115,1712641859459,-1292.64,0.00021095,2]
[321934116,1712641859468,-500.0,0.00021095,2]
[321934117,1712641859479,-500.0,0.00021095,2]
[321934118,1712641859490,-1239.45,0.00021095,2]
[321934119,1712641859499,-500.0,0.00021095,2]
[321934120,1712641859509,-4888.65,0.00021095,2]
[321934121,1712641859518,-500.0,0.00021095,2]
[321934122,1712641859529,-500.0,0.00021095,2]
[321934123,1712641859538,-500.0,0.00021095,2]
[321934124,1712641859547,-555.03,0.00021095,2]
[321934125,1712641859680,-879.49,0.00021095,2]
[321934126,1712641859690,-6563.12,0.00021095,2]
[321934127,1712641859700,-500.0,0.00021095,2]
[321934128,1712641859710,-500.0,0.00021095,2]
[321934129,1712641859721,-500.0,0.00021095,2]
[321934130,1712641859731,-500.0,0.00021095,2]
[321934131,1712641859742,-500.0,0.00021095,2]
[321934132,1712641859753,-500.0,0.00021095,2]
[321934133,1712641859763,-500.0,0.00021095,2]
[321934134,1712641859774,-500.0,0.00021095,2]
[321934135,1712641859785,-898.87,0.00021095,2]
[321934136,1712641859795,-500.0,0.00021095,2]
[321934137,1712641859804,-2258.85,0.00021095,2]
[321934138,1712641859813,-975.73,0.00021095,2]
[321934139,1712641859822,-1487.18,0.00021095,2]
[321934140,1712641859832,-13083.07,0.00021095,2]
[321934141,1712641859842,-1583.63,0.00021095,2]
[321934142,1712641859853,-500.0,0.00021095,2]
[321934143,1712641859864,-1520.69,0.00021095,2]
[321934144,1712641859874,-5583.09,0.00021095,2]
[321934145,1712641859884,-770.58,0.00021095,2]
[321934146,1712641859895,-1061.89,0.00021095,2]
[321934147,1712641859905,-500.0,0.00021095,2]
[321934148,1712641859916,-2035.91,0.00021095,2]
[321934149,1712641859927,-7853.61,0.00021095,2]
[321934150,1712641859937,-500.0,0.00021095,2]
[321934151,1712641859947,-500.0,0.00021095,2]
[321934152,1712641859957,-826.42,0.00021095,2]
[321934153,1712641859968,-2187.99,0.00021095,2]
[321934154,1712641859979,-992.27,0.00021095,2]
[321934155,1712641859989,-1495.51,0.00021095,2]
[321934156,1712641859999,-500.0,0.00021095,2]
[321934157,1712641860009,-500.0,0.00021095,2]
[321934158,1712641860020,-500.0,0.00021095,2]
[321934159,1712641860030,-500.0,0.00021095,2]
[321934160,1712641860040,-500.0,0.00021095,2]
[321934161,1712641860051,-500.0,0.00021095,2]
[321934162,1712641860062,-2628.86,0.00021095,2]
[321934163,1712641860073,-212.15770893,0.00021095,2]
[321934164,1712641860084,-500.0,0.00021095,2]
[321934165,1712641860094,-1514.63,0.00021095,2]
[321934166,1712641860105,-5010.58,0.00021095,2]
[321934167,1712641860116,-500.0,0.00021095,2]
[321934168,1712641860127,-500.0,0.00021095,2]
[321934169,1712641860138,-2300.96,0.00021095,2]
[321934170,1712641860149,-3648.88,0.00021095,2]
[321934171,1712641860159,-500.0,0.00021095,2]
[321934172,1712641860169,-11147.56,0.00021095,2]
[321934173,1712641860181,-1207.55,0.00021095,2]
[321934174,1712641860191,-500.0,0.00021095,2]
[321934175,1712641860202,-500.0,0.00021095,2]
[321934176,1712641860212,-500.0,0.00021095,2]
[321934177,1712641860222,-570.04,0.00021095,2]
[321934178,1712641860233,-500.0,0.00021095,2]
[321934179,1712641860242,-1079.74,0.00021095,2]
[321934180,1712641860252,-1347.52,0.00021095,2]
[321934181,1712641860262,-500.0,0.00021095,2]
[321934182,1712641860271,-1391.88,0.00021095,2]
[321934183,1712641860281,-3144.78,0.00021095,2]
[321934184,1712641860290,-1487.44,0.00021095,2]
[321934185,1712641860301,-11353.4,0.00021095,2]
[321934186,1712641860311,-4992.16,0.00021095,2]
[321934187,1712641860321,-500.0,0.00021095,2]
[321934188,1712641860331,-500.0,0.00021095,2]
[321934189,1712641860341,-500.0,0.00021095,2]
[321934190,1712641860350,-771.66,0.00021095,2]
[321934191,1712641860360,-905.39,0.00021095,2]
[321934192,1712641860370,-500.0,0.00021095,2]
[321934193,1712641860380,-500.0,0.00021095,2]
[321934194,1712641860389,-500.0,0.00021095,2]
[321934195,1712641860400,-904.74,0.00021095,2]
[321934196,1712641860409,-2787.57,0.00021095,2]
[321934197,1712641860420,-500.0,0.00021095,2]
[321934198,1712641860430,-3478.21,0.00021095,2]
[321934199,1712641860440,-2666.76,0.00021095,2]
[321934200,1712641860450,-60002.59,0.00021095,2]
[321934201,1712641860460,-500.0,0.00021095,2]
[321934202,1712641860469,-1687.31,0.00021095,2]
[321934203,1712641860686,-909.82,0.00021095,2]
[321934204,1712641860695,-7989.19,0.00021095,2]
[321934205,1712641860705,-2117.11,0.00021095,2]
[321934206,1712641860714,-500.0,0.00021095,2]
[321934207,1712641860724,-500.0,0.00021095,2]
[321934208,1712641860734,-518.96,0.00021095,2]
[321934209,1712641860744,-500.0,0.00021095,2]
[321934210,1712641860753,-500.0,0.00021095,2]
[321934211,1712641860762,-516.60042789,0.00021095,2]
[321934212,1712641860772,-3273.14,0.00021095,2]
[321934213,1712641860789,-602.86,0.00021095,2]
[321934214,1712641860803,-4837.96,0.00021095,2]
[321934215,1712641860813,-545.45961033,0.00021095,2]
[321934216,1712641860823,-500.0,0.00021095,2]
[321934217,1712641860833,-500.0,0.00021095,2]
[321934218,1712641860843,-3346.67,0.00021095,2]
[321934219,1712641860852,-1679.17,0.00021095,2]
[321934220,1712641860863,-24923.02,0.00021095,2]
[321934221,1712641860873,-500.0,0.00021095,2]
[321934222,1712641860882,-500.0,0.00021095,2]
[321934223,1712641860892,-2453.53,0.00021095,2]
[321934224,1712641860902,-697.71,0.00021095,2]
[321934225,1712641860911,-3588.24,0.00021095,2]
[321934226,1712641860922,-18656.35,0.00021095,2]
[321934227,1712641860931,-2164.26,0.00021095,2]
[321934228,1712641860941,-7252.64,0.00021095,2]
[321934229,1712641860950,-1128.36,0.00021095,2]
[321934230,1712641860961,-500.0,0.00021095,2]
[321934231,1712641860970,-500.0,0.00021095,2]
[321934232,1712641860980,-500.0,0.00021095,2]
[321934233,1712641860990,-500.0,0.00021095,2]
[321934234,1712641860999,-3822.52,0.00021095,2]
[321934235,1712641861009,-500.0,0.00021095,2]
[321934236,1712641861019,-542.59582993,0.00021095,2]
[321934237,1712641861029,-500.0,0.00021095,2]
[321934238,1712641861039,-543.97,0.00021095,2]
[321934239,1712641861048,-2333.91,0.00021095,2]
[321934240,1712641861058,-2859.35,0.00021095,2]
[321934241,1712641861068,-500.0,0.00021095,2]
[321934242,1712641861078,-3768.53,0.00021095,2]
[321934243,1712641861088,-537.51,0.00021095,2]
[321934244,1712641861098,-5896.27,0.00021095,2]
[321934245,1712641861109,-500.0,0.00021095,2]
[321934246,1712641861119,-500.0,0.00021095,2]
[321934247,1712641861129,-1390.81,0.00021095,2]
[321934248,1712641861138,-500.0,0.00021095,2]
[321934249,1712641861148,-3380.67,0.00021095,2]
[321934250,1712641861158,-500.0,0.00021095,2]
[321934251,1712641861168,-500.0,0.00021095,2]
[321934252,1712641861177,-500.0,0.00021095,2]
[321934253,1712641861187,-2593.21,0.00021095,2]
[321934254,1712641861197,-7124.69,0.00021095,2]
[321934255,1712641861206,-872.96,0.00021095,2]
[321934256,1712641861216,-3810.5,0.00021095,2]
[321934257,1712641861226,-500.0,0.00021095,2]
[321934258,1712641861236,-500.0,0.00021095,2]
[321934259,1712641861245,-2381.0,0.00021095,2]
[321934260,1712641861256,-2256.61,0.00021095,2]
[321934261,1712641861265,-500.0,0.00021095,2]
[321934262,1712641861275,-500.0,0.00021095,2]
[321934263,1712641861285,-500.0,0.00021095,2]
[321934264,1712641861294,-500.0,0.00021095,2]
[321934265,1712641861304,-264.07362651,0.00021095,2]
[321934266,1712641861313,-3240.74,0.00021095,2]
[321934267,1712641861323,-500.0,0.00021095,2]
[321934268,1712641861332,-500.0,0.00021095,2]
[321934269,1712641861342,-7053.52,0.00021095,2]
[321934270,1712641861352,-500.0,0.00021095,2]
[321934271,1712641861363,-1568.86,0.00021095,2]
[321934272,1712641861373,-500.0,0.00021095,2]
[321934273,1712641861384,-3410.59,0.00021095,2]
[321934274,1712641861394,-500.0,0.00021095,2]
[321934275,1712641861404,-3807.91,0.00021095,2]
[321934276,1712641861415,-4630.79,0.00021095,2]
[321934277,1712641861425,-500.0,0.00021095,2]
[321934278,1712641861434,-566.58,0.00021095,2]
[321934279,1712641861445,-1526.53,0.00021095,2]
[321934280,1712641861455,-269.36,0.00021095,2]
[321934281,1712641861465,-500.0,0.00021095,2]
[321934282,1712641861476,-1606.58,0.00021095,2]
[321934283,1712641861485,-500.0,0.00021095,2]
[321934284,1712641861501,-1998.25,0.00021095,2]
[321934285,1712641861511,-1252.45,0.00021095,2]
[321934286,1712641861521,-500.0,0.00021095,2]
[321934287,1712641861532,-4518.74,0.00021095,2]
[321934288,1712641861542,-500.0,0.00021095,2]
[321934289,1712641861551,-500.0,0.00021095,2]
[321934290,1712641861562,-4300.45,0.00021095,2]
[321934291,1712641861572,-500.0,0.00021095,2]
[321934292,1712641861582,-564.73,0.00021095,2]
[321934293,1712641861592,-13463.68,0.00021095,2]
[321934294,1712641861602,-594.86,0.00021095,2]
[321934295,1712641861614,-764.1,0.00021095,2]
[321934296,1712641861624,-803.13,0.00021095,2]
[321934297,1712641861634,-1582.85,0.00021095,2]
[321934298,1712641861644,-500.0,0.00021095,2]
[321934299,1712641861653,-963.02,0.00021095,2]
[321934300,1712641861663,-500.0,0.00021095,2]
[321934301,1712641861673,-500.0,0.00021095,2]
[321934302,1712641861683,-783.52,0.00021095,2]
[321934303,1712641861693,-1913.65,0.00021095,2]
[321934304,1712641861703,-24173.12,0.00021095,2]
[321934305,1712641861713,-1515.61,0.00021095,2]
[321934306,1712641861723,-1323.85,0.00021095,2]